bitfinex/quotes_SOLUSD_20241115
["timestamp","ask_amount","ask_price","bid_price","bid_amount"]
[1731634832078,62.35702449,210.11,210.03,38.58014049]
[1731634832599,23.776884,210.11,210.05,38.58014049]
[1731634832788,62.35702449,210.11,210.04,38.58014049]
[1731634833199,23.776884,210.11,210.05,38.58014049]
[1731634833509,20.0,210.13,210.07,38.58014049]
[1731634833703,38.58014049,210.14,210.07,38.58014049]
[1731634834211,62.35702449,210.14,210.07,38.58014049]
[1731634834683,23.776884,210.14,210.08,38.58014049]
[1731634834884,28.535184,210.16,210.09,38.58014049]
[1731634835075,28.535184,210.16,210.01,20.12549]
[1731634835076,38.58014049,210.21,210.14,38.58014049]
[1731634835427,6.532,210.22,210.14,38.58014049]
[1731634835428,38.58014049,210.22,210.14,38.58014049]
[1731634835580,38.58014049,210.2,210.12,38.58014049]
[1731634835883,38.58014049,210.21,210.14,38.58014049]
[1731634836496,38.58014049,210.2,210.13,38.58014049]
[1731634837302,38.58014049,210.15,210.05,15.8243]
[1731634837506,38.58014049,210.11,210.03,38.58014049]
[1731634837681,0.12549,210.12,210.0,15.8243]
[1731634837876,0.12549,210.12,209.91,21.8556]
[1731634837877,0.22549,210.1,209.91,21.8556]
[1731634838079,181.72549,210.12,209.91,21.8556]
[1731634838080,23.776884,210.07,209.91,21.8556]
[1731634838279,161.72549,210.12,209.91,22.0556]
[1731634838487,43.776884,210.11,209.91,22.0556]
[1731634838675,23.776884,210.09,209.91,22.0556]
[1731634839003,43.776884,210.11,210.04,38.58014049]
[1731634839004,62.35702449,210.11,210.04,38.58014049]
[1731634839505,6.5486,210.22,210.04,6.472]
[1731634839803,38.58014049,210.18,210.04,6.472]
[1731634840006,38.58014049,210.18,210.11,38.58014049]
[1731634840394,38.58014049,210.19,210.12,38.58014049]
[1731634840776,43.33774049,210.19,210.12,38.58014049]
[1731634841481,6.5486,210.22,210.05,0.12549]
[1731634841482,38.58014049,210.2,210.13,38.58014049]
[1731634841680,43.33744049,210.21,210.14,38.58014049]
[1731634841958,38.58014049,210.23,210.16,38.58014049]
[1731634842080,38.58014049,210.26,210.18,38.58014049]
[1731634842412,38.58014049,210.23,210.16,38.58014049]
[1731634843306,20.0,210.25,210.2,38.58014049]
[1731634843511,38.58014049,210.28,210.2,38.58014049]
[1731634843692,38.58014049,210.28,210.21,38.58014049]
[1731634843892,38.58014049,210.29,210.22,38.58014049]
[1731634844201,6.6315,210.33,210.24,38.58014049]
[1731634844202,38.58014049,210.31,210.24,38.58014049]
[1731634844403,38.58014049,210.29,210.22,38.58014049]
[1731634844704,38.58014049,210.29,210.21,38.58014049]
[1731634844879,23.69332536,210.3,210.22,23.69332536]
[1731634845089,23.69332536,210.29,210.22,23.69332536]
[1731634846986,4.7552,210.3,210.23,23.69332536]
[1731634847300,4.7552,210.3,210.24,23.69332536]
[1731634847511,28.44852536,210.3,210.23,23.69332536]
[1731634847688,23.69332536,210.32,210.24,23.69332536]
[1731634847887,4.7543,210.34,210.27,23.69332536]
[1731634848089,23.69332536,210.35,210.28,23.69332536]
[1731634848310,23.69332536,210.37,210.29,23.69332536]
[1731634848516,23.69332536,210.36,210.29,23.69332536]
[1731634849198,0.4539427,210.38,210.31,23.69332536]
[1731634849400,0.4539427,210.38,210.33,23.69332536]
[1731634849607,0.4539427,210.38,210.32,23.69332536]
[1731634850110,0.4539427,210.38,210.33,23.69332536]
[1731634851621,0.4539427,210.38,210.34,23.69332536]
[1731634854618,0.4539427,210.38,210.35,23.69332536]
[1731634854912,0.4539427,210.38,210.37,23.69332536]
[1731634855596,0.4539427,210.38,210.35,23.69332536]
[1731634855796,0.4539427,210.38,210.36,23.69332536]
[1731634858516,0.4539427,210.38,210.37,23.69332536]
[1731634859613,0.4539427,210.38,210.36,23.69332536]
[1731634859814,0.4539427,210.38,210.37,23.69332536]
[1731634860206,0.4539427,210.38,210.36,23.69332536]
[1731634860509,0.4539427,210.38,210.37,23.69332536]
[1731634860718,0.4539427,210.38,210.36,23.69332536]
[1731634860923,0.4539427,210.38,210.37,23.69332536]
[1731634862701,4.7508,210.49,210.37,29.71222536]
[1731634862898,23.69332536,210.53,210.47,23.69332536]
[1731634863119,23.69332536,210.54,210.47,23.69332536]
[1731634864105,20.0,210.53,210.47,23.69332536]
[1731634864304,24.7497,210.54,210.48,23.69332536]
[1731634864506,23.776884,210.53,210.48,23.69332536]
[1731634864725,23.776884,210.53,210.47,23.69332536]
[1731634865023,47.47020936,210.53,210.46,23.69332536]
[1731634865403,47.47020936,210.53,210.45,23.69332536]
[1731634865823,47.47020936,210.53,210.46,23.69332536]
[1731634866125,0.4539427,210.59,210.52,23.69332536]
[1731634866323,0.4539427,210.59,210.5,0.12549]
[1731634866324,0.4539427,210.59,210.58,23.69332536]
[1731634866620,0.4539427,210.59,210.58,40.05482536]
[1731634866827,0.4539427,210.59,210.58,40.18031536]
[1731634867212,30.25212536,210.75,210.58,93.79032472]
[1731634867409,6.5588,210.75,210.68,23.69332536]
[1731634867726,23.69332536,210.77,210.68,23.69332536]
[1731634868102,28.43762536,210.78,210.7,23.69332536]
[1731634868421,23.69332536,210.78,210.7,23.69332536]
[1731634869126,24.14726806,210.79,210.71,23.69332536]
[1731634869305,23.69332536,210.77,210.7,23.69332536]
[1731634869507,23.69332536,210.77,210.61,27.56795214]
[1731634869508,23.69332536,210.76,210.69,23.69332536]
[1731634869708,5.1980427,210.79,210.61,27.56795214]
[1731634869709,23.69332536,210.74,210.67,23.69332536]
[1731634869918,23.69332536,210.72,210.64,23.69332536]
[1731634870104,23.69332536,210.73,210.65,23.69332536]
[1731634870734,23.69332536,210.72,210.65,23.69332536]
[1731634871106,23.69332536,210.71,210.64,23.69332536]
[1731634871418,23.69332536,210.68,210.61,23.69332536]
[1731634871606,23.69332536,210.67,210.59,23.69332536]
[1731634871868,4.87019,210.76,210.64,23.69332536]
[1731634872027,4.87019,210.76,210.58,22.5013]
[1731634872028,23.776884,210.75,210.58,22.6013]
[1731634872323,23.776884,210.75,210.58,22.5013]
[1731634872627,4.7447,210.76,210.58,22.5013]
[1731634872822,4.7442,210.78,210.6,0.12549]
[1731634873030,23.69332536,210.69,210.62,23.69332536]
[1731634873226,23.69332536,210.69,210.61,23.69332536]
[1731634873527,0.1,210.77,210.58,22.5013]
[1731634873528,23.69332536,210.72,210.65,23.69332536]
[1731634873724,23.69332536,210.72,210.64,23.69332536]
[1731634874029,23.776884,210.71,210.65,23.69332536]
[1731634874217,47.47020936,210.71,210.63,23.69332536]
[1731634874408,23.69332536,210.7,210.63,23.69332536]
[1731634874728,23.776884,210.71,210.64,23.69332536]
[1731634875428,47.47020936,210.71,210.64,23.69332536]
[1731634875733,23.69332536,210.7,210.62,23.69332536]
[1731634875925,23.69332536,210.71,210.64,23.69332536]
[1731634876328,23.69332536,210.71,210.59,0.12549]
[1731634876329,23.69332536,210.73,210.65,23.69332536]
[1731634876523,4.7446,210.77,210.66,23.69332536]
[1731634876524,23.69332536,210.74,210.66,23.69332536]
[1731634876729,23.69332536,210.73,210.65,23.69332536]
[1731634877635,23.69332536,210.67,210.58,22.5013]
[1731634877817,23.69332536,210.66,210.59,23.69332536]
[1731634878024,23.69332536,210.67,210.6,23.69332536]
[1731634878337,23.69332536,210.65,210.58,16.3615]
[1731634878533,23.69332536,210.64,210.58,16.3615]
[1731634878720,23.69332536,210.6,210.53,23.69332536]
[1731634879125,23.69332536,210.62,210.54,23.69332536]
[1731634879318,23.69332536,210.66,210.58,23.69332536]
[1731634879634,23.69332536,210.68,210.61,23.69332536]
[1731634879812,0.12549,210.7,210.65,23.69332536]
[1731634880440,4.87159,210.7,210.63,38.73312536]
[1731634880742,0.12549,210.7,210.63,38.73312536]
[1731634881145,28.56491536,210.7,210.63,38.73312536]
[1731634881329,4.87159,210.7,210.63,38.73312536]
[1731634881526,28.56491536,210.7,210.63,38.73312536]
[1731634881788,0.12549,210.7,210.68,23.69332536]
[1731634882068,0.12549,210.7,210.67,23.69332536]
[1731634882425,0.12549,210.7,210.68,23.69332536]
[1731634883725,0.12549,210.7,210.67,23.69332536]
[1731634884038,0.12549,210.7,210.69,23.69332536]
[1731634884822,0.12549,210.7,210.67,23.69332536]
[1731634886167,0.12549,210.7,210.68,23.69332536]
[1731634886960,0.12549,210.7,210.59,3.67130463]
[1731634886961,23.69332536,210.69,210.61,23.69332536]
[1731634887331,23.69332536,210.66,210.59,23.69332536]
[1731634888537,23.69332536,210.63,210.55,23.69332536]
[1731634888740,23.69332536,210.6,210.54,16.417]
[1731634889643,4.7469,210.67,210.51,6.2392]
[1731634889644,23.69332536,210.58,210.51,6.2392]
[1731634889834,23.69332536,210.58,210.5,23.69332536]
[1731634890033,23.69332536,210.59,210.51,23.69332536]
[1731634890362,23.69332536,210.65,210.57,23.69332536]
[1731634890863,23.69332536,210.65,210.49,15.9533]
[1731634890864,23.69332536,210.6,210.52,23.69332536]
[1731634891163,23.69332536,210.58,210.52,23.69332536]
[1731634891669,23.69332536,210.58,210.5,23.69332536]
[1731634892066,23.69332536,210.54,210.46,23.69332536]
[1731634892260,4.7489,210.58,210.43,23.69332536]
[1731634892261,23.69332536,210.51,210.43,23.69332536]
[1731634892586,20.0,210.44,210.37,19.001142]
[1731634892740,20.0,210.44,210.35,15.4656]
[1731634892741,23.69332536,210.4,210.35,15.4656]
[1731634893349,23.69332536,210.43,210.35,39.15892536]
[1731634893557,23.69332536,210.47,210.39,23.69332536]
[1731634894477,23.69332536,210.44,210.36,23.69332536]
[1731634895143,28.44472536,210.46,210.38,23.69332536]
[1731634895372,23.69332536,210.44,210.36,23.69332536]
[1731634895551,4.7514,210.46,210.27,6.0915]
[1731634895552,23.69332536,210.42,210.34,23.69332536]
[1731634895752,23.69332536,210.4,210.32,23.69332536]
[1731634896445,23.69332536,210.46,210.38,23.69332536]
[1731634896749,23.69332536,210.44,210.36,23.69332536]
[1731634899161,23.69332536,210.48,210.4,23.69332536]
[1731634899367,4.7501,210.52,210.38,23.69332536]
[1731634899368,23.69332536,210.46,210.38,23.69332536]
[1731634899669,23.69332536,210.44,210.36,23.69332536]
[1731634900861,28.44532536,210.44,210.34,23.69332536]
[1731634901065,23.69332536,210.4,210.32,23.69332536]
[1731634902172,28.44632536,210.4,210.32,23.69332536]
[1731634902890,23.69332536,210.36,210.29,15.4656]
[1731634903179,23.69332536,210.34,210.26,23.69332536]
[1731634903665,23.69332536,210.32,210.24,23.69332536]
[1731634905367,28.44812536,210.32,210.24,23.69332536]
[1731634905568,28.44812536,210.32,210.17,19.01898]
[1731634905569,23.69332536,210.26,210.19,23.69332536]
[1731634905869,23.69332536,210.24,210.15,23.69332536]
[1731634906092,23.69332536,210.22,210.15,23.69332536]
[1731634906849,23.69332536,210.22,210.13,23.69332536]
[1731634907058,23.69332536,210.24,210.17,23.69332536]
[1731634907257,29.77152536,210.28,210.19,23.69332536]
[1731634907461,29.77152536,210.28,210.21,23.69332536]
[1731634907771,23.69332536,210.3,210.21,23.69332536]
[1731634908167,23.69332536,210.27,210.19,23.69332536]
[1731634908874,28.44882536,210.29,210.19,23.69332536]
[1731634909046,6.1214,210.33,210.21,23.69332536]
[1731634909047,23.69332536,210.31,210.21,23.69332536]
[1731634909247,23.69332536,210.31,210.23,23.69332536]
[1731634909880,23.69332536,210.31,210.24,23.69332536]
[1731634910866,23.69332536,210.35,210.28,23.69332536]
[1731634911080,23.69332536,210.37,210.28,23.69332536]
[1731634911257,23.69332536,210.35,210.28,23.69332536]
[1731634911458,23.69332536,210.35,210.23,15.5607]
[1731634911459,23.69332536,210.31,210.24,23.69332536]
[1731634912171,23.776884,210.32,210.24,23.69332536]
[1731634912950,23.69332536,210.27,210.2,23.69332536]
[1731634913153,23.69332536,210.25,210.17,16.4053]
[1731634914680,23.69332536,210.27,210.18,23.69332536]
[1731634915053,23.776884,210.26,210.18,23.69332536]
[1731634915268,23.69332536,210.25,210.18,23.69332536]
[1731634916275,23.69332536,210.27,210.18,23.69332536]
[1731634917580,20.0,210.26,210.18,23.69332536]
[1731634917953,28.44912536,210.27,210.18,23.69332536]
[1731634918159,20.0,210.26,210.18,23.69332536]
[1731634918871,28.44912536,210.27,210.18,23.69332536]
[1731634919050,20.0,210.26,210.18,23.69332536]
[1731634919451,28.44912536,210.27,210.18,23.69332536]
[1731634919676,20.0,210.26,210.18,23.69332536]
[1731634920011,23.69332536,210.31,210.21,23.69332536]
[1731634920162,23.69332536,210.31,210.23,23.69332536]
[1731634920373,23.69332536,210.29,210.21,23.69332536]
[1731634920570,23.69332536,210.27,210.19,23.69332536]
[1731634921080,23.69332536,210.31,210.23,23.69332536]
[1731634921248,23.69332536,210.33,210.25,23.69332536]
[1731634921651,28.44722536,210.35,210.27,23.69332536]
[1731634922076,23.69332536,210.31,210.23,23.69332536]
[1731634922459,23.69332536,210.33,210.25,23.69332536]
[1731634923153,23.69332536,210.31,210.21,23.69332536]
[1731634924379,28.44832536,210.31,210.23,23.69332536]
[1731634924587,23.69332536,210.33,210.25,23.69332536]
[1731634924760,28.44712536,210.36,210.28,23.69332536]
[1731634924960,23.69332536,210.36,210.28,23.69332536]
[1731634925176,28.44662536,210.38,210.3,23.69332536]
[1731634925389,28.44662536,210.38,210.26,23.69332536]
[1731634925390,23.69332536,210.34,210.26,23.69332536]
[1731634925758,23.69332536,210.34,210.18,6.4249]
[1731634925759,23.69332536,210.36,210.29,23.69332536]
[1731634925991,23.69332536,210.38,210.29,23.69332536]
[1731634926265,23.69332536,210.36,210.27,23.69332536]
[1731634926463,23.69332536,210.34,210.26,23.69332536]
[1731634927587,23.776884,210.31,210.24,23.69332536]
[1731634927664,23.69332536,210.3,210.22,23.69332536]
[1731634930553,23.69332536,210.28,210.2,40.23312536]
[1731634932073,23.69332536,210.3,210.22,23.69332536]
[1731634932457,28.44842536,210.3,210.22,23.69332536]
[1731634932662,28.44842536,210.3,210.2,16.5398]
[1731634932663,23.69332536,210.28,210.2,40.23312536]
[1731634933294,23.69332536,210.24,210.16,23.69332536]
[1731634933481,23.69332536,210.2,210.15,16.0729]
[1731634933662,23.69332536,210.18,210.1,39.76622536]
[1731634936486,28.44802536,210.32,210.24,23.69332536]
[1731634937176,23.69332536,210.28,210.2,23.69332536]
[1731634937472,28.44802536,210.32,210.24,23.69332536]
[1731634937673,23.776884,210.31,210.24,23.69332536]
[1731634938283,23.776884,210.31,210.18,0.12549]
[1731634938284,23.69332536,210.3,210.22,23.69332536]
[1731634938875,23.69332536,210.3,210.24,23.69332536]
[1731634939084,28.531784,210.31,210.24,23.69332536]
[1731634939478,23.69332536,210.34,210.26,23.69332536]
[1731634939868,4.7539,210.35,210.28,23.69332536]
[1731634940366,23.69332536,210.38,210.3,23.69332536]
[1731634940569,4.7533,210.38,210.32,23.69332536]
[1731634941088,28.44632536,210.4,210.32,23.69332536]
[1731634941884,28.44632536,210.4,210.33,23.69332536]
[1731634942692,6.4232,210.41,210.35,23.69332536]
[1731634942870,28.44582536,210.42,210.35,23.69332536]
[1731634943975,23.776884,210.41,210.35,23.69332536]
[1731634944180,23.776884,210.41,210.34,23.69332536]
[1731634944368,23.776884,210.41,210.35,23.69332536]
[1731634948091,47.47020936,210.41,210.33,23.69332536]
[1731634948895,23.69332536,210.37,210.29,23.69332536]
[1731634949101,23.69332536,210.34,210.28,15.3001]
[1731634949346,23.776884,210.32,210.25,0.12549]
[1731634949591,20.1,210.38,210.25,0.12549]
[1731634949592,23.69332536,210.26,210.25,0.12549]
[1731634949794,47.47020936,210.26,210.25,0.12549]
[1731634950301,52.22620936,210.26,210.25,0.12549]
[1731634950599,72.22620936,210.26,210.25,0.12549]
[1731634950900,43.776884,210.26,210.25,0.12549]
[1731634954386,23.69332536,210.31,210.25,0.12549]
[1731634954597,23.69332536,210.29,210.25,0.12549]
[1731634955099,23.69332536,210.27,210.25,0.12549]
[1731634955888,23.69332536,210.29,210.25,0.12549]
[1731634956214,23.69332536,210.31,210.25,0.12549]
[1731634956508,23.69332536,210.35,210.27,23.69332536]
[1731634957699,23.69332536,210.35,210.28,23.69332536]
[1731634957893,23.69332536,210.36,210.28,23.69332536]
[1731634958106,23.776884,210.35,210.28,23.69332536]
[1731634958285,23.69332536,210.36,210.28,23.69332536]
[1731634958480,6.1149,210.38,210.3,23.69332536]
[1731634958481,23.69332536,210.38,210.3,23.69332536]
[1731634959494,23.69332536,210.4,210.32,23.69332536]
[1731634959891,23.776884,210.39,210.32,23.69332536]
[1731634960705,23.69332536,210.4,210.32,23.69332536]
[1731634960919,23.69332536,210.42,210.36,23.69332536]
[1731634962421,23.776884,210.41,210.35,23.69332536]
[1731634962720,23.776884,210.41,210.26,15.7702]
[1731634962721,23.776884,210.41,210.34,23.69332536]
[1731634963303,23.776884,210.43,210.37,23.69332536]
[1731634963509,23.69332536,210.45,210.37,23.69332536]
[1731634963711,23.69332536,210.43,210.36,23.69332536]
[1731634963915,23.69332536,210.44,210.37,23.69332536]
[1731634964199,23.69332536,210.46,210.38,23.69332536]
[1731634964807,28.44482536,210.46,210.38,23.69332536]
[1731634965939,23.69332536,210.46,210.38,23.69332536]
[1731634967735,23.69332536,210.51,210.44,23.69332536]
[1731634967913,4.7499,210.53,210.37,15.617]
[1731634967914,23.69332536,210.5,210.42,23.69332536]
[1731634968609,23.69332536,210.5,210.43,23.69332536]
[1731634968824,23.776884,210.5,210.44,23.69332536]
[1731634969036,23.69332536,210.49,210.41,23.69332536]
[1731634969341,47.47020936,210.5,210.43,23.69332536]
[1731634969510,47.47020936,210.5,210.37,15.617]
[1731634969511,23.69332536,210.54,210.47,23.69332536]
[1731634969709,23.69332536,210.54,210.4,6.217]
[1731634969710,23.69332536,210.53,210.45,23.69332536]
[1731634970328,23.69332536,210.55,210.47,23.69332536]
[1731634970734,4.7491,210.57,210.47,23.69332536]
[1731634970735,23.69332536,210.54,210.47,23.69332536]
[1731634970913,47.47020936,210.56,210.49,23.69332536]
[1731634971109,23.69332536,210.55,210.47,23.69332536]
[1731634971433,23.776884,210.56,210.4,6.217]
[1731634971434,28.526484,210.54,210.49,23.69332536]
[1731634972035,28.526484,210.54,210.48,23.69332536]
[1731634973224,23.69332536,210.53,210.45,23.69332536]
[1731634973433,23.69332536,210.46,210.39,23.69332536]
[1731634973621,23.69332536,210.44,210.37,15.617]
[1731634973823,23.69332536,210.41,210.37,15.617]
[1731634974320,23.79332536,210.48,210.33,23.69332536]
[1731634974321,23.69332536,210.4,210.33,23.69332536]
[1731634975320,28.44622536,210.4,210.33,23.69332536]
[1731634976735,23.69332536,210.4,210.33,23.69332536]
[1731634977113,4.753,210.39,210.32,16.3133]
[1731634977319,47.47020936,210.38,210.32,16.3133]
[1731634979840,52.22350936,210.38,210.32,16.3133]
[1731634980417,52.22350936,210.38,210.27,38.70762536]
[1731634980418,23.776884,210.35,210.27,38.70762536]
[1731634980629,23.69332536,210.34,210.27,38.70762536]
[1731634980827,4.7533,210.38,210.29,23.69332536]
[1731634980828,23.776884,210.37,210.29,23.69332536]
[1731634981037,6.3284,210.4,210.27,15.0143]
[1731634981038,4.7531,210.39,210.31,23.69332536]
[1731634981245,23.776884,210.38,210.31,23.69332536]
[1731634981932,23.69332536,210.36,210.29,23.69332536]
[1731634982147,23.69332536,210.32,210.27,15.0143]
[1731634982319,23.69332536,210.3,210.25,0.12549]
[1731634982717,24.7528,210.4,210.29,23.69332536]
[1731634983039,161.6,210.41,210.25,0.12549]
[1731634983040,23.69332536,210.41,210.34,23.69332536]
[1731634983418,0.12549,210.4,210.32,23.69332536]
[1731634983626,23.69332536,210.37,210.28,23.69332536]
[1731634983827,23.69332536,210.37,210.3,23.69332536]
[1731634984034,23.69332536,210.39,210.32,23.69332536]
[1731634984433,4.7535,210.37,210.3,23.69332536]
[1731634984636,23.776884,210.38,210.3,23.69332536]
[1731634984949,23.776884,210.38,210.32,23.69332536]
[1731634986231,28.530184,210.38,210.32,23.69332536]
[1731634986745,23.69332536,210.43,210.36,23.69332536]
[1731634986945,28.44512536,210.45,210.38,23.69332536]
[1731634987322,0.12549,210.44,210.38,23.69332536]
[1731634987523,0.12549,210.44,210.31,15.9706]
[1731634987524,0.12549,210.44,210.36,23.69332536]
[1731634987723,23.69332536,210.43,210.36,23.69332536]
[1731634987923,23.776884,210.42,210.36,23.69332536]
[1731634988326,28.44592536,210.41,210.34,23.69332536]
[1731634988541,28.44592536,210.41,210.31,15.9706]
[1731634988542,23.776884,210.38,210.31,15.9706]
[1731634989728,28.530184,210.38,210.31,15.9706]
[1731634993122,23.69332536,210.37,210.31,15.9706]
[1731634993346,28.530184,210.38,210.25,16.16049]
[1731634993347,23.776884,210.32,210.25,16.16049]
[1731634993528,23.776884,210.3,210.25,16.16049]
[1731634993729,23.69332536,210.33,210.26,23.69332536]
[1731634993923,23.776884,210.32,210.26,23.69332536]
[1731634996246,20.0,210.33,210.26,23.69332536]
[1731634996447,23.776884,210.32,210.26,23.69332536]
[1731634996818,23.776884,210.32,210.25,16.16049]
[1731634996819,14.80426778,210.31,210.25,0.12549]
[1731634997025,23.776884,210.28,210.25,0.12549]
[1731634997550,14.80426778,210.26,210.25,0.12549]
[1731634997726,58.70664178,210.26,210.25,1e-08]
[1731634998051,0.12549,210.24,210.13,15.5105]
[1731634998251,23.776884,210.17,210.1,14.80426778]
[1731634998440,23.776884,210.15,210.08,30.31476778]
[1731634998834,23.776884,210.15,210.09,23.72272414]
[1731634999049,23.72272414,210.21,210.13,23.72272414]
[1731634999551,23.84821414,210.19,210.08,15.5105]
[1731634999758,23.72272414,210.17,210.09,23.72272414]
[1731634999935,23.776884,210.16,210.09,23.72272414]
[1731635001030,28.535284,210.16,210.09,23.72272414]
[1731635004542,23.776884,210.16,210.09,23.72272414]
[1731635004747,23.776884,210.16,210.11,23.72272414]
[1731635004947,23.72272414,210.19,210.11,23.72272414]
[1731635005543,4.7574,210.2,210.13,23.72272414]
[1731635006332,0.12549,210.19,210.13,23.72272414]
[1731635006559,0.12549,210.19,210.09,23.72272414]
[1731635006560,23.72272414,210.17,210.09,23.72272414]
[1731635006936,23.776884,210.22,210.13,23.72272414]
[1731635007138,23.72272414,210.2,210.13,23.72272414]
[1731635007463,23.72272414,210.18,210.11,23.72272414]
[1731635007636,23.72272414,210.2,210.11,23.72272414]
[1731635008147,23.72272414,210.2,210.13,23.72272414]
[1731635008344,28.47912414,210.24,210.16,23.72272414]
[1731635008545,23.72272414,210.22,210.14,23.72272414]
[1731635008849,23.72272414,210.2,210.12,23.72272414]
[1731635009556,23.72272414,210.17,210.09,23.72272414]
[1731635010058,23.84821414,210.15,210.08,15.5105]
[1731635010239,23.72272414,210.1,210.06,0.4539427]
[1731635010441,43.776884,210.12,210.06,0.4539427]
[1731635010442,23.72272414,210.08,210.06,0.4539427]
[1731635010962,23.776884,210.07,210.06,0.4539427]
[1731635013772,23.72272414,210.1,210.06,0.4539427]
[1731635013945,23.72272414,210.14,210.06,24.17666684]
[1731635014142,6.1579,210.16,210.08,23.72272414]
[1731635014143,34.63892414,210.16,210.08,23.72272414]
[1731635014565,23.72272414,210.16,210.08,23.72272414]
[1731635014739,28.48072414,210.18,210.1,23.72272414]
[1731635015966,0.12549,210.16,210.1,23.72272414]
[1731635016165,20.0,210.17,210.1,23.72272414]
[1731635016365,23.72272414,210.18,210.12,23.72272414]
[1731635016545,23.72272414,210.22,210.14,23.72272414]
[1731635017047,0.12549,210.21,210.14,23.72272414]
[1731635017963,0.12549,210.21,210.06,10.66518962]
[1731635017964,28.48002414,210.2,210.12,23.72272414]
[1731635018265,20.12549,210.21,210.14,23.72272414]
[1731635018943,23.776884,210.2,210.14,23.72272414]
[1731635019962,28.47932414,210.24,210.16,23.72272414]
[1731635020463,28.47922414,210.24,210.16,23.72272414]
[1731635021471,23.776884,210.23,210.16,23.72272414]
[1731635022872,179.9025,210.31,210.13,16.0202]
[1731635022873,28.47792414,210.3,210.22,23.72272414]
[1731635023257,28.47792414,210.3,210.17,6.6444]
[1731635023258,23.72272414,210.28,210.2,23.72272414]
[1731635024069,28.47822414,210.28,210.2,23.72272414]
[1731635024469,23.72272414,210.26,210.18,23.72272414]
[1731635024969,38.59151331,210.25,210.17,14.81462931]
[1731635026859,43.34791331,210.25,210.17,14.81462931]
[1731635027346,14.81462931,210.23,210.17,14.81462931]
[1731635027567,23.776884,210.22,210.17,14.81462931]
[1731635028072,23.776884,210.24,210.19,14.81462931]
[1731635028258,23.776884,210.26,210.19,14.81462931]
[1731635028868,23.776884,210.28,210.21,14.81462931]
[1731635029674,23.776884,210.28,210.14,0.12549]
[1731635029975,23.776884,210.24,210.17,14.81462931]
[1731635030277,23.776884,210.22,210.16,14.81462931]
[1731635031153,6.6152,210.31,210.13,16.0202]
[1731635031154,23.776884,210.26,210.2,14.81462931]
[1731635031350,14.81462931,210.27,210.2,14.81462931]
[1731635032275,19.57052931,210.27,210.2,14.81462931]
[1731635032483,23.776884,210.26,210.2,14.81462931]
[1731635032857,14.81462931,210.25,210.18,14.81462931]
[1731635033155,14.81462931,210.19,210.13,16.0202]
[1731635033479,23.776884,210.18,210.13,16.0202]
[1731635033849,0.12549,210.16,210.06,0.4539427]
[1731635034050,14.81462931,210.1,210.06,0.4539427]
[1731635035275,23.776884,210.11,210.06,0.4539427]
[1731635035482,14.81462931,210.14,210.06,15.26857201]
[1731635035778,23.776884,210.13,210.06,15.26857201]
[1731635037075,4.7579,210.18,210.1,16.3441]
[1731635037379,23.776884,210.17,210.11,14.81462931]
[1731635038455,23.776884,210.16,210.11,14.81462931]
[1731635042178,14.81462931,210.23,210.15,14.81462931]
[1731635042381,19.57102931,210.24,210.17,14.81462931]
[1731635042679,14.81462931,210.22,210.13,14.81462931]
[1731635042867,14.81462931,210.18,210.11,14.81462931]
[1731635043067,19.57102931,210.24,210.07,14.81462931]
[1731635043068,14.81462931,210.15,210.07,14.81462931]
[1731635043272,14.81462931,210.12,210.06,0.4539427]
[1731635043477,14.81462931,210.1,210.06,0.4539427]
[1731635043884,0.32549,210.18,210.06,0.4539427]
[1731635043885,23.776884,210.13,210.06,0.4539427]
[1731635044266,28.535884,210.13,210.06,0.4539427]
[1731635044677,23.776884,210.16,210.09,14.81462931]
[1731635045187,23.776884,210.16,210.1,14.81462931]
[1731635045563,14.81462931,210.2,210.13,14.81462931]
[1731635045770,14.81462931,210.2,210.12,14.81462931]
[1731635046171,19.57212931,210.2,210.12,14.81462931]
[1731635047179,14.81462931,210.18,210.1,14.81462931]
[1731635047591,23.776884,210.19,210.12,14.81462931]
[1731635048276,0.12549,210.15,210.08,14.81462931]
[1731635048478,0.12549,210.15,210.06,0.4539427]
[1731635048479,23.776884,210.12,210.06,0.4539427]
[1731635048777,14.81462931,210.1,210.06,0.4539427]
[1731635049369,23.776884,210.09,210.06,0.4539427]
[1731635050385,28.536784,210.09,210.06,0.4539427]
[1731635052282,43.902374,210.07,210.06,0.4539427]
[1731635053374,48.662674,210.07,210.06,0.4539427]
[1731635056377,63.47730331,210.07,210.06,0.4539427]
[1731635060182,23.776884,210.07,210.06,0.4539427]
[1731635060377,14.81462931,210.12,210.06,0.4539427]
[1731635060583,14.81462931,210.13,210.06,0.4539427]
[1731635060888,14.81462931,210.11,210.06,0.4539427]
[1731635061073,0.12549,210.16,210.06,0.4539427]